bitfinex/quotes_ETHUSD_20260114
["timestamp","ask_amount","ask_price","bid_price","bid_amount"]
[1768413421289,2.36057509,3345.4,3344.1,0.393]
[1768413422980,0.83383974,3345.5,3344.1,2.76147178]
[1768413423200,8.33839735,3345.7,3344.3,2.36847178]
[1768413423601,8.33839735,3345.7,3344.3,2.3983734]
[1768413424197,5.34948622,3345.7,3344.4,8.34861768]
[1768413424393,5.34948622,3345.7,3344.5,0.83785193]
[1768413425097,2.36057509,3345.7,3344.6,0.393]
[1768413425283,3.3928416,3345.8,3344.6,0.393]
[1768413426203,0.001,3345.9,3344.8,5.97943074]
[1768413426406,0.001,3345.9,3344.9,0.87708006]
[1768413426775,0.001,3345.9,3345.0,2.36847178]
[1768413427097,5.97658654,3346.4,3345.1,2.76147178]
[1768413427316,8.33716163,3346.4,3345.1,2.76147178]
[1768413427811,2.36057509,3346.3,3345.1,2.76147178]
[1768413427966,2.36057509,3346.3,3345.2,0.36385518]
[1768413427967,2.36057509,3346.2,3345.2,0.36385518]
[1768413428172,2.36057509,3346.0,3344.9,0.87708006]
[1768413428373,2.98873247,3345.9,3344.9,3.86664439]
[1768413428569,5.34930756,3345.9,3344.9,0.87708006]
[1768413428766,2.36057509,3345.8,3344.7,0.393]
[1768413428993,2.36057509,3345.8,3343.9,2.36847178]
[1768413429192,2.36057509,3345.8,3344.0,2.99042593]
[1768413429402,2.36057509,3345.8,3344.1,3.38331103]
[1768413429572,2.36057509,3345.8,3344.1,3.38331535]
[1768413429772,2.36057509,3345.6,3344.9,0.002]
[1768413429970,2.36057509,3345.4,3344.1,4.02069745]
[1768413430172,2.36057509,3345.4,3344.1,1.0303821]
[1768413430372,2.36057509,3345.4,3344.1,0.393]
[1768413430596,2.36057509,3345.2,3344.1,0.393]
[1768413430797,2.36057509,3345.2,3343.9,2.99051721]
[1768413431001,2.36057509,3345.2,3344.0,0.393]
[1768413431396,2.36057509,3345.1,3343.5,0.002]
[1768413431597,2.76457509,3345.0,3343.3,0.002]
[1768413432514,2.36057509,3344.8,3343.3,0.002]
[1768413433112,2.36057509,3344.5,3343.0,0.002]
[1768413433413,2.36057509,3344.3,3342.0,2.36847178]
[1768413433579,2.36057509,3344.3,3342.2,5.36048374]
[1768413433782,2.36057509,3344.3,3342.5,2.99175216]
[1768413434051,7.12288794,3344.0,3342.0,2.99220333]
[1768413434307,2.76457509,3343.9,3342.1,2.99409652]
[1768413434470,2.36057509,3343.5,3342.2,0.59863938]
[1768413434675,2.36057509,3343.3,3342.1,2.99405876]
[1768413434916,2.36057509,3343.3,3342.1,0.002]
[1768413436806,2.36057509,3343.1,3342.1,0.002]
[1768413439038,2.36057509,3342.9,3342.1,0.002]
[1768413439325,2.76457509,3342.8,3342.1,0.002]
[1768413439524,3.93843014,3342.8,3342.1,0.002]
[1768413440021,2.36057509,3342.7,3342.1,0.002]
[1768413441435,5.98336624,3342.6,3342.1,0.002]
[1768413441590,5.98336624,3342.6,3342.4,0.002]
[1768413441791,8.39369271,3342.6,3341.8,0.002]
[1768413441991,9.14981484,3342.6,3341.8,0.002]
[1768413442912,2.41032647,3342.5,3341.8,0.002]
[1768413443819,2.99186213,3342.4,3341.8,0.002]
[1768413444011,0.405,3342.3,3341.8,0.002]
[1768413444731,2.99180347,3342.5,3341.8,0.002]
[1768413444933,0.405,3342.2,3341.8,0.002]
[1768413445339,2.99180347,3342.5,3341.8,0.002]
[1768413446931,2.99159362,3342.7,3341.8,0.002]
[1768413447122,8.39172431,3343.7,3341.8,2.74620106]
[1768413447323,2.81532647,3343.6,3342.0,2.32127707]
[1768413447848,0.405,3343.6,3342.0,2.32127707]
[1768413448048,10.418,3344.8,3342.2,2.32127707]
[1768413448049,5.98068238,3344.1,3342.2,2.32127707]
[1768413448220,6.38568238,3344.1,3342.4,2.32127707]
[1768413448560,6.85057624,3344.1,3342.6,2.32127707]
[1768413448855,6.38568238,3344.1,3342.6,2.32127707]
[1768413449023,2.41032647,3344.5,3342.8,2.32127707]
[1768413449348,2.81532647,3344.4,3342.8,2.32127707]
[1768413449552,2.81532647,3344.3,3342.8,2.32127707]
[1768413450263,0.405,3344.2,3342.8,2.32127707]
[1768413450561,0.405,3344.2,3342.9,3.1910235]
[1768413450741,2.81532647,3344.2,3342.9,3.1910235]
[1768413451057,2.41032647,3344.0,3342.5,2.94640478]
[1768413451621,2.41032647,3344.0,3342.6,2.32127707]
[1768413451846,0.405,3344.0,3342.6,2.32127707]
[1768413453024,2.99052005,3343.9,3342.7,5.98318724]
[1768413453230,2.99052005,3343.9,3342.8,2.32127707]
[1768413453448,2.99052005,3343.9,3342.9,0.83044643]
[1768413454273,2.99052005,3343.9,3342.9,3.82182341]
[1768413454432,5.9810401,3343.9,3342.9,0.83044643]
[1768413454841,2.41032647,3343.8,3342.9,0.83044643]
[1768413455048,2.41032647,3343.8,3342.7,2.99153978]
[1768413455328,2.41032647,3343.8,3342.5,0.62512771]
[1768413455527,2.41032647,3343.8,3342.2,2.32127707]
[1768413455856,2.41032647,3343.8,3342.4,2.99178087]
[1768413456058,2.41032647,3343.8,3342.2,2.32127707]
[1768413456356,0.405,3344.0,3342.2,5.31326229]
[1768413456357,2.41032647,3343.6,3342.2,5.31326229]
[1768413456654,0.405,3343.5,3342.2,8.30530346]
[1768413456862,0.405,3343.5,3342.3,0.86983035]
[1768413457858,0.405,3343.5,3342.4,2.32127707]
[1768413458360,2.99096727,3343.4,3342.4,5.3131235]
[1768413458860,2.99096727,3343.4,3342.4,2.99184643]
[1768413459230,5.98193454,3343.4,3342.3,3.86177807]
[1768413459445,0.8797261,3343.4,3342.4,2.99184788]
[1768413459647,3.39589287,3343.5,3342.4,2.99184788]
[1768413460331,6.38678574,3343.5,3342.3,3.86174846]
[1768413461947,6.38678574,3343.5,3342.3,6.18302553]
[1768413462267,2.41032647,3343.4,3342.3,0.86983035]
[1768413462468,2.99105674,3343.3,3342.3,3.8617393]
[1768413462666,2.99105674,3343.3,3342.4,0.65760164]
[1768413463981,5.98211348,3343.3,3342.4,0.65760164]
[1768413464187,5.98211348,3343.3,3342.1,0.393]
[1768413464188,8.39243995,3343.3,3342.1,3.38504816]
[1768413464358,8.39243995,3343.3,3342.1,5.70639851]
[1768413464564,8.39243995,3343.3,3342.1,2.71427707]
[1768413465063,2.41132647,3343.2,3342.1,2.71427707]
[1768413465262,2.41132647,3343.2,3342.1,5.70634576]
[1768413465472,1.17993474,3343.2,3342.1,9.56852684]
[1768413465659,0.406,3343.2,3342.2,2.32127707]
[1768413466580,3.39718563,3343.2,3342.3,2.99195165]
[1768413467173,2.99218563,3343.2,3342.3,2.99195165]
[1768413467378,3.39718563,3343.2,3342.3,2.99195165]
[1768413467573,3.39718563,3343.2,3342.3,3.94878352]
[1768413467999,0.001,3343.2,3342.3,3.94878352]
[1768413468354,2.99216276,3343.2,3342.3,0.95683187]
[1768413468667,5.40248923,3343.2,3342.3,0.95683187]
[1768413468867,2.41132647,3343.2,3342.3,2.9919246]
[1768413469088,2.41132647,3343.2,3342.2,2.99199952]
[1768413469585,2.41132647,3343.2,3342.1,5.70639507]
[1768413470411,2.78835646,3343.1,3342.1,0.393]
[1768413470760,8.36600676,3343.0,3342.1,0.393]
[1768413470955,2.38335646,3342.8,3341.8,0.002]
[1768413472973,2.38335646,3342.6,3341.8,0.002]
[1768413473175,0.405,3342.5,3341.8,0.002]
[1768413474495,2.78835646,3342.5,3341.8,0.002]
[1768413475292,5.78018892,3342.5,3341.8,0.002]
[1768413476718,8.77202138,3342.5,3341.8,0.002]
[1768413476861,2.38335646,3342.4,3342.1,0.002]
[1768413477066,2.38335646,3342.4,3341.8,0.002]
[1768413477582,5.9839033,3342.3,3341.8,0.002]
[1768413477763,2.99195165,3342.3,3341.8,0.002]
[1768413477962,5.9839033,3342.3,3341.8,0.002]
[1768413478157,6.94894949,3342.3,3341.8,0.002]
[1768413478358,2.38335646,3342.2,3341.6,0.002]
[1768413480068,6.94894949,3342.3,3341.1,0.002]
[1768413480069,2.38335646,3342.0,3341.1,0.002]
[1768413480405,0.405,3341.9,3341.1,2.33878327]
[1768413480693,0.405,3341.9,3341.1,2.91157917]
[1768413481103,2.78835646,3341.9,3341.1,0.002]
[1768413481665,2.78835646,3341.9,3340.8,0.002]
[1768413482067,8.36815506,3341.8,3340.8,0.002]
[1768413482262,5.37575576,3341.8,3340.8,0.002]
[1768413482587,2.9923993,3341.8,3340.8,2.33878327]
[1768413482782,0.405,3341.7,3340.9,2.33678327]
[1768413484015,2.78835646,3341.7,3340.8,0.002]
[1768413484209,5.9851568,3341.6,3340.8,0.002]
[1768413484412,2.9925784,3341.6,3340.8,0.002]
[1768413484819,5.9851568,3341.6,3340.8,0.002]
[1768413485012,5.9851568,3341.6,3340.4,0.002]
[1768413485013,2.38335646,3341.5,3340.4,0.002]
[1768413485192,2.38335646,3341.5,3340.4,2.99564613]
[1768413485394,2.38335646,3341.5,3340.4,0.002]
[1768413486194,2.38335646,3341.3,3340.4,0.002]
[1768413486393,2.38335646,3341.1,3340.4,0.002]
[1768413487421,2.38335646,3341.1,3339.9,2.33678327]
[1768413487721,2.38335646,3341.1,3339.4,2.33878327]
[1768413488023,2.38335646,3341.1,3339.8,5.33092354]
[1768413488622,1.24188715,3341.2,3340.7,0.002]
[1768413488623,8.36958812,3341.0,3340.7,0.002]
[1768413488929,1.26044169,3340.9,3340.4,0.002]
[1768413489092,0.405,3340.8,3340.4,0.002]
[1768413489492,2.99311583,3341.0,3340.4,0.002]
[1768413489726,3.39811583,3341.0,3340.4,0.002]
[1768413490214,6.39123166,3341.0,3340.4,0.002]
[1768413490528,8.77458812,3341.0,3340.4,0.002]
[1768413490902,0.405,3340.9,3340.4,0.002]
[1768413493734,3.39824511,3340.9,3340.4,0.002]
[1768413495419,6.39149022,3340.9,3340.4,0.002]
[1768413495619,3.39824511,3340.9,3340.4,0.002]
[1768413496640,9.41398929,3340.9,3340.4,0.002]
[1768413497011,6.42074418,3340.9,3340.4,0.002]
[1768413497416,3.39824511,3340.9,3340.4,0.002]
[1768413497836,6.39149022,3340.9,3340.4,0.002]
[1768413498038,2.38335646,3340.8,3340.4,0.002]
[1768413498341,2.38335646,3340.8,3339.8,2.33678327]
[1768413500638,5.37673125,3340.8,3339.9,5.37733126]
[1768413500813,2.99437479,3340.8,3340.1,2.38322965]
[1768413503642,8.35052965,3340.8,3339.9,2.38322965]
[1768413503942,2.36278007,3340.7,3339.7,5.37744682]
[1768413504144,2.36278007,3340.7,3339.8,2.38322965]
[1768413504339,2.36278007,3340.7,3339.9,3.27177621]
[1768413504639,2.99437479,3340.8,3339.9,5.65500586]
[1768413504845,8.35052965,3340.8,3339.9,2.66095262]
[1768413505146,8.35052965,3340.8,3339.9,2.38322965]
[1768413506342,5.35715486,3340.8,3339.9,5.37732813]
[1768413507122,2.99437479,3340.8,3340.0,2.38322965]
[1768413507448,11.36288424,3340.8,3340.0,2.38322965]
[1768413508229,5.37513466,3340.5,3339.6,2.77722965]
[1768413508445,5.37513466,3340.5,3339.6,5.6555035]
[1768413508644,5.37513466,3340.5,3339.7,2.38322965]
[1768413508848,5.78013466,3340.5,3339.7,2.38322965]
[1768413509425,2.99365345,3340.4,3339.7,2.38322965]
[1768413510334,2.99365345,3340.4,3339.4,2.77922965]
[1768413510335,5.37513466,3340.2,3339.4,2.77922965]
[1768413510533,5.37513466,3340.2,3339.4,5.77371991]
[1768413510734,5.37513466,3340.2,3339.5,2.38322965]
[1768413511763,8.36898152,3340.2,3339.5,2.38322965]
[1768413512148,5.37513466,3340.2,3339.5,2.38322965]
[1768413512348,5.37513466,3339.7,3339.2,2.38322965]
[1768413512857,5.37513466,3340.0,3339.2,2.38322965]
[1768413513060,5.37513466,3340.0,3339.6,0.002]
[1768413513227,5.37513466,3340.0,3339.2,2.38322965]
[1768413513736,8.36917342,3340.0,3339.2,2.38322965]
[1768413513960,5.37513466,3339.7,3339.2,2.38322965]
[1768413514167,5.37513466,3339.7,3339.0,2.38522965]
[1768413514363,12.14504367,3340.0,3339.0,2.38522965]
[1768413514533,9.7822636,3340.0,3339.2,2.38322965]
[1768413514865,1.41309018,3340.0,3339.3,2.38322965]
[1768413515156,3.39894786,3340.1,3339.3,2.38322965]
[1768413515563,2.99365345,3340.4,3339.4,2.38322965]
[1768413515858,0.405,3340.3,3339.4,2.38322965]
[1768413516228,3.39865345,3340.4,3339.4,2.38322965]
[1768413516533,3.39865345,3340.4,3339.6,2.38322965]
[1768413517465,2.36278007,3340.3,3339.5,0.8766475]
[1768413517656,0.405,3340.2,3339.6,2.38322965]
[1768413518057,0.001,3340.5,3339.8,2.38322965]
[1768413518854,0.001,3340.5,3339.5,3.87107323]
[1768413518855,2.36378007,3340.5,3339.5,3.87107323]
[1768413519045,2.36378007,3340.5,3339.6,3.06978976]
[1768413519244,0.001,3340.5,3339.7,2.38322965]
[1768413519659,2.36378007,3340.5,3339.6,3.06978976]
[1768413519829,0.001,3340.5,3339.7,2.38322965]
[1768413520033,2.36378007,3340.5,3339.5,2.38322965]
[1768413520258,2.36378007,3340.5,3339.6,0.57717201]
[1768413520487,2.36378007,3340.5,3339.6,2.96040166]
[1768413521449,0.001,3340.5,3339.6,2.96040166]
[1768413523057,0.001,3340.5,3339.7,2.38322965]
[1768413523258,0.405,3340.4,3339.7,2.38322965]
[1768413523460,0.405,3340.4,3339.9,2.38322965]
[1768413524061,0.405,3340.4,3339.8,0.89492029]
[1768413524266,2.76778007,3340.4,3339.6,0.57717201]
[1768413524469,3.39870453,3340.4,3339.6,5.95476462]
[1768413524956,0.001,3340.2,3339.6,5.95476462]
[1768413525292,0.001,3340.2,3339.7,0.89493137]
[1768413526459,0.001,3340.2,3339.0,2.99686154]
[1768413526460,8.35080401,3340.0,3339.0,0.002]
[1768413526776,2.36278007,3339.8,3339.0,0.002]
[1768413527182,1.13458111,3339.9,3339.0,2.38522965]
[1768413527358,0.405,3339.8,3339.0,2.38522965]
[1768413527765,0.405,3339.8,3339.0,0.002]
[1768413527951,1.2805804,3339.8,3339.0,0.002]
[1768413528152,0.405,3339.8,3339.0,2.38522965]
[1768413528986,3.39923074,3339.8,3339.1,2.38322965]
[1768413530772,0.001,3340.2,3339.1,2.38322965]
[1768413530773,0.001,3340.2,3339.2,2.775433]
[1768413531180,0.001,3340.2,3339.2,2.74548571]
[1768413531486,0.001,3340.2,3339.4,2.35148571]
[1768413532886,0.001,3340.2,3339.6,2.35148571]
[1768413533071,0.001,3340.2,3339.7,0.394]
[1768413533271,0.001,3340.2,3339.7,2.74548571]
[1768413534756,0.001,3340.5,3340.1,2.35148571]
[1768413534956,0.001,3340.8,3340.3,2.99374307]
[1768413535186,2.99248885,3341.7,3340.4,2.35148571]
[1768413536454,2.22511686,3342.1,3340.4,2.35148571]
[1768413536890,0.001,3341.4,3340.4,2.35148571]
[1768413537090,0.001,3341.4,3340.7,2.35148571]
[1768413537290,0.001,3341.4,3340.9,2.35148571]
[1768413538874,0.001,3341.4,3341.0,0.394]
[1768413541091,0.001,3341.4,3341.1,0.394]
[1768413542576,2.22611686,3342.5,3341.1,2.69548571]
[1768413542778,5.3715704,3341.7,3340.6,2.35148571]
[1768413543093,5.3715704,3341.7,3340.8,2.99322305]
[1768413543094,10.589215,3341.7,3340.8,2.99322305]
[1768413543266,2.99240035,3341.8,3340.8,5.34470876]
[1768413543899,5.9848007,3341.8,3340.8,5.34470876]
[1768413544063,1.3581488,3341.7,3340.8,5.34470876]
[1768413544381,1.3581488,3341.7,3340.8,8.33800377]
[1768413544578,1.3581488,3341.7,3340.9,2.35148571]
[1768413544805,2.99240035,3341.8,3340.9,2.35148571]
[1768413545104,2.99204117,3342.2,3341.1,2.35148571]
[1768413545290,2.99204117,3342.2,3341.3,2.35148571]
[1768413545478,2.99199026,3342.3,3341.3,2.35148571]
[1768413545903,2.99199026,3342.3,3341.3,2.30148571]
[1768413546102,2.99199026,3342.3,3341.4,2.35148571]
[1768413546275,5.98398052,3342.3,3341.4,2.35148571]
[1768413546774,5.98398052,3342.3,3341.2,0.394]
[1768413546973,2.22511686,3342.2,3341.2,0.394]
[1768413547172,2.99213069,3342.1,3341.2,0.394]
[1768413547373,7.37227944,3342.1,3341.2,0.394]
[1768413548623,2.99213069,3342.1,3341.3,2.74548571]
[1768413548822,0.001,3342.5,3341.5,2.35148571]
[1768413548970,0.001,3342.0,3341.5,2.35148571]
[1768413549270,0.001,3342.0,3341.6,5.34406411]
[1768413549465,0.001,3342.0,3341.7,0.394]
[1768413549699,0.001,3342.5,3341.7,0.394]
[1768413549999,1.35910295,3342.5,3341.7,0.394]
[1768413550299,1.35910295,3342.5,3341.7,2.74548571]
[1768413550477,1.35910295,3342.5,3341.7,0.394]
[1768413551026,2.22511686,3342.4,3341.7,0.394]
[1768413551168,1.35910295,3342.5,3341.1,2.35148571]
[1768413551169,2.99213069,3342.1,3341.1,2.35148571]
[1768413551375,2.22511686,3341.6,3340.9,0.394]
[1768413552613,2.22511686,3341.9,3340.9,0.394]
[1768413553014,2.22511686,3341.9,3340.3,5.3715704]
[1768413553015,7.59668726,3340.8,3339.7,0.002]
[1768413553216,0.75966873,3340.7,3339.9,3.38804087]
[1768413553404,5.21843355,3340.8,3339.9,3.38804087]
[1768413553608,2.99331669,3340.8,3339.9,3.38804087]
[1768413554000,5.98666749,3340.8,3339.9,0.394]
[1768413554412,2.99331669,3340.8,3339.9,3.3880954]
[1768413555408,2.99313877,3341.0,3339.9,3.3880954]
[1768413555604,3.85477322,3341.0,3339.9,6.6131579]
[1768413555805,0.405,3341.2,3340.0,2.38142582]
[1768413556013,2.22511686,3341.6,3340.0,2.38142582]
[1768413556211,0.405,3341.5,3340.0,2.38142582]
[1768413556612,8.21027366,3341.6,3340.0,2.38142582]
[1768413556813,3.75038968,3341.5,3340.2,2.35148571]
[1768413557604,8.2106319,3341.4,3340.2,5.34529922]
[1768413557807,8.2106319,3341.4,3340.3,2.35148571]
[1768413558055,1.52527282,3341.5,3340.4,2.74648571]
[1768413558056,4.11294227,3341.5,3340.4,2.74648571]
[1768413558334,2.99266945,3341.5,3340.4,2.77642224]
[1768413558714,2.22511686,3342.0,3340.4,2.77642224]
[1768413559225,0.001,3342.5,3340.4,2.77642224]
[1768413559226,5.21697899,3342.4,3340.5,2.35148571]
[1768413559427,2.22511686,3342.4,3340.7,2.35148571]
[1768413559622,5.21705207,3342.4,3340.9,2.35148571]
[1768413559924,8.20898728,3342.4,3341.1,2.35148571]
[1768413560098,5.21705207,3342.4,3341.1,2.35148571]
[1768413560300,5.21705207,3342.4,3341.2,2.62613428]
[1768413560502,2.41011531,3342.3,3341.2,0.27464857]
[1768413560728,2.41011531,3342.3,3341.0,2.72433538]
[1768413560901,0.001,3342.0,3341.0,2.72433538]
[1768413561110,2.26037712,3342.0,3340.7,5.32471552]
[1768413561304,2.26037712,3342.0,3340.7,0.002]
[1768413561855,2.25937712,3341.8,3340.7,0.002]
[1768413562059,2.25937712,3341.6,3340.7,0.397]
[1768413562758,2.25937712,3341.6,3340.7,0.002]
[1768413563834,5.9851568,3341.6,3340.7,0.002]
[1768413565359,2.25937712,3341.5,3340.7,0.002]
[1768413566751,0.82449966,3341.7,3340.7,2.36126922]
[1768413566953,2.99230976,3341.9,3340.8,2.90430909]
[1768413567662,5.25260865,3342.0,3340.8,2.90430909]
[1768413568157,2.25937712,3341.9,3340.8,0.57497371]
[1768413569063,8.24417572,3341.8,3340.8,0.57497371]
[1768413569233,3.38311785,3341.7,3340.9,0.395]
[1768413569882,2.25937712,3341.6,3340.9,0.395]
[1768413570182,2.25937712,3341.6,3340.7,0.397]
[1768413572352,2.99266796,3341.5,3340.7,0.397]
[1768413573579,5.98533592,3341.5,3340.7,0.397]
[1768413574400,2.20937712,3341.2,3340.7,0.002]
[1768413576485,5.20233453,3341.2,3340.7,0.002]
[1768413576901,2.99295741,3341.2,3340.7,0.002]
[1768413579176,5.25226673,3341.3,3340.7,0.002]
[1768413580274,2.99283677,3341.4,3340.7,0.002]
[1768413580707,3.39773742,3341.5,3340.7,2.33133538]
[1768413580908,9.51492885,3341.5,3340.7,0.002]
[1768413581077,2.25937712,3341.4,3340.7,0.002]
[1768413582310,7.25555173,3341.5,3340.7,0.002]
[1768413583004,2.25937712,3341.4,3340.7,0.002]
[1768413584275,2.25937712,3341.4,3341.0,0.002]
[1768413584480,5.25331378,3341.2,3341.0,0.002]
[1768413585307,0.001,3341.2,3341.0,0.002]
[1768413586714,2.66537712,3341.2,3340.7,1e-08]
[1768413586913,2.66537712,3341.2,3340.4,0.002]
[1768413587088,2.25937712,3341.0,3340.4,0.002]
[1768413588706,5.98641084,3340.9,3340.4,0.002]
[1768413589911,2.99320542,3340.9,3340.4,0.002]
[1768413590213,5.98641084,3340.9,3340.4,0.002]
[1768413590792,2.99320542,3340.9,3340.4,0.002]
[1768413590997,6.87823601,3340.9,3340.4,0.002]
[1768413593815,3.88503059,3340.9,3340.4,0.002]
[1768413594115,6.87823601,3340.9,3340.4,0.002]
[1768413594336,2.29494392,3340.8,3340.4,0.002]
[1768413594491,2.69994392,3340.8,3339.7,2.20382633]
[1768413594690,1.25713853,3340.7,3339.8,2.20182633]
[1768413595400,2.29494392,3341.0,3340.0,2.20182633]
[1768413595619,2.69994392,3341.0,3340.0,2.20182633]
[1768413596409,8.68617558,3341.0,3340.0,2.20182633]
[1768413596788,2.29494392,3340.9,3339.9,0.395]
[1768413597427,5.98659002,3340.8,3339.8,2.20182633]
[1768413597585,9.47614753,3340.8,3340.3,0.002]
[1768413597789,2.29594392,3340.7,3340.3,0.002]
[1768413599521,2.99347422,3340.6,3340.3,0.002]
[1768413600228,8.28189236,3340.6,3339.7,0.002]
[1768413600394,2.29494392,3340.4,3339.4,0.002]
[1768413600590,2.29494392,3340.4,3339.4,2.20382633]
[1768413601287,2.29494392,3340.4,3339.4,0.002]
[1768413601537,2.29494392,3340.2,3338.6,2.20382633]
[1768413601702,2.29494392,3340.0,3338.6,2.59882633]
[1768413602030,2.29494392,3339.8,3338.6,0.397]
[1768413602220,2.29494392,3339.6,3338.6,0.397]
[1768413602589,2.29494392,3339.6,3338.6,0.002]
[1768413603632,2.29494392,3339.4,3338.6,0.002]
[1768413603928,0.405,3339.3,3338.6,0.002]
[1768413604708,2.69994392,3339.3,3338.6,0.002]
[1768413605737,3.39967871,3339.3,3338.6,0.002]
[1768413606320,6.39435742,3339.3,3338.6,0.002]
[1768413607030,2.29494392,3339.2,3338.6,0.002]
[1768413607322,0.95581878,3339.1,3338.6,0.002]
[1768413607702,2.29494392,3339.0,3338.3,0.002]
[1768413609232,0.406,3338.9,3338.3,0.002]
[1768413609609,5.69601516,3338.9,3338.3,0.002]
[1768413609811,2.70094392,3338.9,3338.3,0.002]
[1768413610642,2.99593708,3339.0,3338.3,0.002]
[1768413610643,0.001,3339.0,3338.3,0.002]
[1768413610944,0.001,3339.0,3338.3,2.20382633]
[1768413611227,0.001,3339.0,3338.4,0.22038263]
[1768413613129,0.001,3339.0,3338.4,3.2158146]
[1768413613444,0.001,3339.0,3338.5,2.20182633]
[1768413613744,0.001,3339.0,3338.4,3.2158146]
[1768413613900,0.001,3339.0,3338.4,0.22038263]
[1768413614097,2.29494392,3338.8,3337.0,2.20182633]
[1768413614300,2.29494392,3338.8,3337.1,2.99659264]
[1768413614518,2.29494392,3338.8,3337.0,5.19849524]
[1768413614720,2.29494392,3338.6,3337.1,0.85923612]
[1768413614957,2.29494392,3338.6,3337.0,2.20182633]
[1768413615161,2.29494392,3338.6,3337.2,2.99652352]
[1768413615469,2.29494392,3338.6,3337.1,2.99659228]
[1768413615841,0.27019439,3338.7,3337.0,2.20182633]
[1768413615842,2.29494392,3338.4,3337.0,2.99668792]
[1768413616029,2.29494392,3338.2,3336.8,2.59882633]
[1768413616229,2.56503831,3338.1,3337.0,2.99669195]
[1768413616938,0.406,3338.0,3337.0,5.99339557]
[1768413617826,3.40184989,3338.0,3337.0,5.99339557]
[1768413618439,2.56503831,3338.1,3337.0,8.1952219]
[1768413618639,2.56503831,3338.1,3337.1,2.20182633]
[1768413618640,0.406,3338.1,3337.1,2.20182633]
[1768413620068,3.40173088,3338.1,3337.2,2.99652403]
[1768413620268,0.406,3338.1,3337.2,2.99652403]
[1768413620456,0.406,3338.1,3337.2,5.99304806]
[1768413620773,0.406,3338.1,3337.2,2.99652403]
[1768413620941,2.5978373,3338.0,3337.0,2.99664105]
[1768413621128,2.5978373,3338.0,3337.1,2.99657344]
[1768413621463,0.34016656,3338.0,3337.3,0.002]
[1768413622368,3.33599191,3338.0,3337.3,0.002]
[1768413623759,0.34016656,3338.0,3337.3,0.002]
[1768413623966,3.40153665,3338.3,3337.4,2.99634445]
[1768413624463,2.25767074,3338.7,3337.5,2.2430997]
[1768413624638,5.9899967,3338.9,3337.5,2.27306224]
[1768413624833,0.001,3339.0,3337.5,2.2430997]
[1768413625033,0.001,3339.0,3337.7,2.2430997]
[1768413625234,2.99592564,3339.0,3337.9,2.2430997]
[1768413625443,8.24852202,3339.0,3337.8,0.395]
[1768413625787,2.25767074,3338.9,3337.5,2.6380997]
[1768413626090,5.99085128,3339.0,3337.5,2.99625129]
[1768413626091,2.25767074,3338.6,3337.5,2.99625129]
[1768413626375,1.16491556,3338.5,3337.5,2.99625129]
[1768413626547,1.16491556,3338.5,3337.5,5.23935099]
[1768413626874,1.16491556,3338.5,3337.5,8.23560567]
[1768413627073,1.16491556,3338.5,3337.5,5.23935099]
[1768413627288,1.16491556,3338.5,3337.5,8.23560567]
[1768413627584,1.16491556,3338.5,3337.5,2.99625129]
[1768413627751,2.25767074,3338.4,3337.3,2.99841376]
[1768413627953,2.66367074,3338.4,3337.3,0.002]
[1768413628167,2.66367074,3338.4,3337.3,2.2450997]
[1768413628168,2.99553665,3338.3,3337.3,2.2450997]
[1768413628681,5.25320739,3338.3,3337.3,0.002]
[1768413628983,0.86546657,3338.2,3337.3,2.2450997]
[1768413629276,0.406,3338.6,3337.5,2.2430997]
[1768413630247,0.406,3338.6,3337.6,5.9923298]
[1768413630450,0.406,3338.6,3337.6,8.2354295]
[1768413630679,0.406,3338.6,3337.7,2.2430997]
[1768413630985,2.25867074,3339.0,3337.8,1.12316072]
[1768413631188,0.406,3338.7,3337.8,3.36626042]
[1768413631549,2.25867074,3339.0,3337.9,2.2430997]
[1768413631550,0.001,3339.0,3337.9,2.2430997]
[1768413632251,0.001,3339.0,3338.1,2.2430997]
[1768413633299,0.001,3338.3,3338.1,2.2430997]
[1768413633590,0.001,3339.0,3338.3,2.2430997]
[1768413633786,0.001,3339.0,3338.3,2.6390997]
[1768413634484,0.001,3339.0,3338.5,2.2430997]
[1768413636292,0.001,3339.0,3338.2,0.31804899]
[1768413636599,0.001,3339.0,3338.2,2.2430997]
[1768413636767,0.001,3339.0,3338.5,5.99070253]
[1768413636998,0.001,3339.0,3338.6,2.2430997]
[1768413637177,0.001,3339.0,3338.6,2.6390997]
[1768413638414,0.001,3339.0,3338.7,8.23345522]
[1768413639123,0.001,3339.0,3338.8,2.2430997]
[1768413640616,0.001,3339.0,3338.9,2.99499835]
[1768413642501,0.001,3339.0,3338.7,3.39109123]
[1768413642713,0.001,3339.0,3338.8,2.99508805]
[1768413645080,0.001,3339.0,3337.1,5.34394563]
[1768413645081,0.001,3339.0,3338.0,2.2430997]
[1768413645285,2.25867074,3339.0,3338.4,2.99540016]
[1768413645519,0.001,3339.0,3338.6,2.99524988]
[1768413645736,0.001,3339.0,3338.7,3.02509643]
[1768413645922,0.001,3339.0,3338.7,2.99514466]
[1768413646077,0.001,3339.0,3338.6,2.99522614]
[1768413646624,0.001,3339.0,3338.7,0.02995177]
[1768413646796,0.001,3339.0,3338.6,2.99522614]
[1768413647229,0.001,3339.0,3338.4,5.99086917]
[1768413648838,2.25867074,3339.0,3337.6,2.2450997]
[1768413649040,2.25767074,3338.8,3337.7,2.99604662]
[1768413649256,2.25767074,3338.6,3337.7,2.99604662]
[1768413649531,2.25767074,3338.5,3337.6,0.002]
[1768413650895,2.25767074,3338.5,3337.3,0.002]
[1768413651094,2.188533,3338.3,3337.3,0.002]
[1768413651294,0.86543065,3338.4,3337.0,0.002]
[1768413651295,2.188533,3338.1,3337.0,0.002]
[1768413651497,2.188533,3337.9,3337.0,0.002]
[1768413653860,2.188533,3337.7,3337.0,0.002]
[1768413654928,2.188533,3337.7,3336.8,0.002]
[1768413655129,2.188533,3337.5,3336.8,0.002]
[1768413655329,1.11764891,3337.6,3336.8,0.002]
[1768413655330,2.188533,3337.3,3336.8,0.002]
[1768413655975,5.18505703,3337.2,3336.8,0.002]
[1768413656281,2.188533,3337.1,3336.8,0.002]